fUST/lending_fUST_20260118
["ID","MTS","AMOUNT","RATE_DAILY","PERIOD"]
[402398905,1768672245852,-500.0,0.00016712,3]
[402398907,1768672245861,-813.64,0.00016712,3]
[402398909,1768672245871,-500.0,0.00016712,3]
[402398911,1768672245880,-500.0,0.00016712,3]
[402398913,1768672245890,-500.0,0.00016712,3]
[402398915,1768672245899,-500.0,0.00016712,3]
[402398917,1768672245909,-496.95581154,0.00016712,3]
[402398919,1768672245918,-561.64,0.00016712,3]
[402398921,1768672245927,-815.39,0.00016712,3]
[402398923,1768672245937,-499.44798613,0.00016712,3]
[402398925,1768672245947,-1185.99,0.00016712,3]
[402398927,1768672245956,-500.0,0.00016712,3]
[402398929,1768672245966,-500.0,0.00016712,3]
[402398931,1768672245975,-567.48,0.00016712,3]
[402398933,1768672245985,-500.0,0.00016712,3]
[402398935,1768672245994,-500.0,0.00016712,3]
[402398937,1768672246003,-500.0,0.00016712,3]
[402398939,1768672246013,-500.0,0.00016712,3]
[402398941,1768672246023,-500.0,0.00016712,3]
[402398943,1768672246033,-649.06,0.00016712,3]
[402398945,1768672246043,-500.0,0.00016712,3]
[402398947,1768672246052,-500.0,0.00016712,3]
[402398949,1768672246062,-565.36,0.00016712,3]
[402398951,1768672246071,-500.0,0.00016712,3]
[402398953,1768672246080,-500.0,0.00016712,3]
[402398955,1768672246090,-844.87,0.00016712,3]
[402398956,1768672246099,-500.0,0.00016712,3]
[402398957,1768672246109,-1175.77,0.00016712,3]
[402398958,1768672246119,-500.0,0.00016712,3]
[402398959,1768672246128,-500.0,0.00016712,3]
[402398960,1768672246137,-227.29636774,0.00016712,3]
[402398961,1768672246147,-500.0,0.00016712,3]
[402398962,1768672246156,-500.0,0.00016712,3]
[402398963,1768672246166,-1169.86,0.00016712,3]
[402398964,1768672246176,-500.0,0.00016712,3]
[402398965,1768672246185,-602.7,0.00016712,3]
[402398966,1768672246195,-500.0,0.00016712,3]
[402398967,1768672246205,-500.0,0.00016712,3]
[402398968,1768672246214,-500.0,0.00016712,3]
[402398969,1768672246224,-500.0,0.00016712,3]
[402398970,1768672246234,-500.0,0.00016712,3]
[402398971,1768672246243,-500.0,0.00016712,3]
[402398972,1768672246253,-500.0,0.00016712,3]
[402398973,1768672246263,-500.0,0.00016712,3]
[402398974,1768672246274,-605.61,0.00016712,3]
[402398975,1768672246290,-500.0,0.00016712,3]
[402398976,1768672246300,-514.68,0.00016712,3]
[402398977,1768672246310,-500.0,0.00016712,3]
[402398978,1768672246320,-511.95572068,0.00016712,3]
[402398979,1768672246331,-500.0,0.00016712,3]
[402398981,1768672246341,-637.45,0.00016712,3]
[402398983,1768672246350,-595.27,0.00016712,3]
[402398985,1768672246359,-622.37,0.00016712,3]
[402398989,1768672246380,-510.29,0.00016712,3]
[402398991,1768672246391,-500.0,0.00016712,3]
[402398993,1768672246401,-500.0,0.00016712,3]
[402398995,1768672246411,-278.05841257,0.00016712,3]
[402398997,1768672246421,-747.18,0.00016712,3]
[402398999,1768672246432,-500.0,0.00016712,3]
[402399001,1768672246442,-500.0,0.00016712,3]
[402399003,1768672246452,-500.0,0.00016712,3]
[402399006,1768672246462,-500.0,0.00016712,3]
[402399008,1768672246472,-947.56,0.00016712,3]
[402399010,1768672246482,-500.0,0.00016712,3]
[402399012,1768672246492,-756.15,0.00016712,3]
[402399014,1768672246503,-500.0,0.00016712,3]
[402399016,1768672246512,-534.17,0.00016712,3]
[402399018,1768672246522,-751.4,0.00016712,3]
[402399020,1768672246533,-500.0,0.00016712,3]
[402399022,1768672246543,-832.93,0.00016712,3]
[402399024,1768672246552,-500.0,0.00016712,3]
[402399026,1768672246562,-500.0,0.00016712,3]
[402399029,1768672246572,-537.8,0.00016712,3]
[402399031,1768672246582,-500.0,0.00016712,3]
[402399033,1768672246592,-500.0,0.00016712,3]
[402399035,1768672246601,-774.1,0.00016712,3]
[402399037,1768672246611,-500.0,0.00016712,3]
[402399039,1768672246621,-500.0,0.00016712,3]
[402399041,1768672246631,-500.0,0.00016712,3]
[402399043,1768672246642,-1081.35,0.00016712,3]
[402399045,1768672246652,-500.0,0.00016712,3]
[402399047,1768672246661,-500.0,0.00016712,3]
[402399049,1768672246671,-500.0,0.00016712,3]
[402399051,1768672246680,-500.0,0.00016712,3]
[402399053,1768672246690,-864.76,0.00016712,3]
[402399055,1768672246700,-500.0,0.00016712,3]
[402399057,1768672246709,-1077.83,0.00016712,3]
[402399059,1768672246719,-500.0,0.00016712,3]
[402399061,1768672246729,-500.0,0.00016712,3]
[402399063,1768672246739,-988.32,0.00016712,3]
[402399065,1768672246748,-905.85,0.00016712,3]
[402399067,1768672246758,-1000.0,0.00016712,2]
[402399069,1768672246768,-500.0,0.00016712,3]
[402399071,1768672246777,-500.0,0.00016712,3]
[402399073,1768672246787,-500.0,0.00016712,3]
[402399075,1768672246796,-1338.2,0.00016712,3]
[402399077,1768672246807,-500.0,0.00016712,3]
[402399079,1768672246816,-557.94,0.00016712,3]
[402399082,1768672246826,-500.0,0.00016712,3]
[402399084,1768672246836,-500.0,0.00016712,3]
[402399086,1768672246845,-500.0,0.00016712,3]
[402399088,1768672246855,-500.0,0.00016712,3]
[402399090,1768672246863,-500.0,0.00016712,3]
[402399092,1768672246872,-500.0,0.00016712,3]
[402399094,1768672246882,-500.0,0.00016712,3]
[402399096,1768672246894,-500.0,0.00016712,3]
[402399098,1768672246904,-954.03,0.00016712,3]
[402399100,1768672246913,-500.0,0.00016712,3]
[402399102,1768672246923,-500.0,0.00016712,3]
[402399104,1768672246934,-500.0,0.00016712,3]
[402399106,1768672246944,-500.0,0.00016712,3]
[402399108,1768672246954,-569.16,0.00016712,3]
[402399110,1768672246964,-500.0,0.00016712,3]
[402399112,1768672246974,-500.0,0.00016712,3]
[402399114,1768672246984,-500.0,0.00016712,3]
[402399116,1768672246993,-500.0,0.00016712,3]
[402399118,1768672247004,-500.0,0.00016712,3]
[402399120,1768672247014,-500.0,0.00016712,3]
[402399122,1768672247024,-642.64,0.00016712,3]
[402399124,1768672247034,-500.0,0.00016712,3]
[402399126,1768672247044,-652.9,0.00016712,3]
[402399128,1768672247054,-500.0,0.00016712,3]
[402399130,1768672247064,-500.0,0.00016712,3]
[402399132,1768672247074,-500.0,0.00016712,3]
[402399134,1768672247084,-500.0,0.00016712,3]
[402399136,1768672247093,-500.0,0.00016712,3]
[402399138,1768672247102,-500.0,0.00016712,3]
[402399140,1768672247112,-653.37,0.00016712,3]
[402399143,1768672247121,-251.11469402,0.00016712,3]
[402399144,1768672247131,-1166.14,0.00016712,3]
[402399146,1768672247140,-500.0,0.00016712,3]
[402399185,1768672247511,-512.66871378,0.00016712,3]
[402399187,1768672247522,-500.0,0.00016712,3]
[402399189,1768672247531,-500.0,0.00016712,3]
[402399191,1768672247540,-500.0,0.00016712,3]
[402399193,1768672247549,-500.0,0.00016712,3]
[402399195,1768672247559,-500.0,0.00016712,3]
[402399197,1768672247568,-500.0,0.00016712,3]
[402399199,1768672247578,-500.0,0.00016712,3]
[402399201,1768672247588,-587.61,0.00016712,3]
[402399203,1768672247598,-600.53,0.00016712,3]
[402399205,1768672247607,-885.65,0.00016712,3]
[402399207,1768672247616,-500.0,0.00016712,3]
[402399209,1768672247625,-746.94,0.00016712,3]
[402399211,1768672247634,-500.0,0.00016712,3]
[402399213,1768672247643,-309.63209923,0.00016712,3]
[402399215,1768672247652,-1428.8,0.00016712,3]
[402399217,1768672247662,-500.0,0.00016712,3]
[402399220,1768672247671,-500.0,0.00016712,3]
[402399222,1768672247681,-602.7,0.00016712,3]
[402399223,1768672247690,-500.0,0.00016712,3]
[402399226,1768672247699,-500.0,0.00016712,3]
[402399228,1768672247709,-500.0,0.00016712,3]
[402399230,1768672247718,-500.0,0.00016712,3]
[402399232,1768672247727,-500.0,0.00016712,3]
[402399234,1768672247736,-500.0,0.00016712,3]
[402399235,1768672247745,-500.0,0.00016712,3]
[402399237,1768672247754,-505.27,0.00016712,3]
[402399239,1768672247763,-500.0,0.00016712,3]
[402399241,1768672247772,-1280.76,0.00016712,3]
[402399243,1768672247781,-500.0,0.00016712,3]
[402399245,1768672247791,-1200.0,0.00016712,2]
[402399247,1768672247800,-633.08,0.00016712,3]
[402399249,1768672247810,-500.0,0.00016712,3]
[402399252,1768672247820,-500.0,0.00016712,3]
[402399254,1768672247829,-735.44,0.00016712,3]
[402399255,1768672247838,-500.0,0.00016712,3]
[402399257,1768672247848,-500.0,0.00016712,3]
[402399259,1768672247858,-348.04789676,0.00016712,3]
[402399261,1768672247867,-635.48793387,0.00016712,3]
[402399263,1768672247877,-500.0,0.00016712,3]
[402399266,1768672247887,-500.0,0.00016712,3]
[402399268,1768672247897,-536.05,0.00016712,3]
[402399270,1768672247906,-500.0,0.00016712,3]
[402399272,1768672247915,-500.0,0.00016712,3]
[402399274,1768672247929,-500.0,0.00016712,3]
[402399276,1768672247939,-742.56,0.00016712,3]
[402399279,1768672247950,-500.0,0.00016712,3]
[402399281,1768672247960,-500.0,0.00016712,3]
[402399283,1768672247969,-500.0,0.00016712,3]
[402399285,1768672247979,-500.0,0.00016712,3]
[402399287,1768672247988,-500.0,0.00016712,3]
[402399289,1768672247997,-1411.96,0.00016712,3]
[402399291,1768672248007,-811.82,0.00016712,3]
[402399293,1768672248016,-997.47,0.00016712,3]
[402399295,1768672248029,-500.0,0.00016712,3]
[402399297,1768672248038,-1358.94,0.00016712,3]
[402399299,1768672248049,-500.0,0.00016712,3]
[402399301,1768672248058,-683.61,0.00016712,3]
[402399303,1768672248069,-500.0,0.00016712,3]
[402399305,1768672248078,-500.0,0.00016712,3]
[402399307,1768672248087,-500.0,0.00016712,3]
[402399309,1768672248097,-500.0,0.00016712,3]
[402399311,1768672248106,-705.55,0.00016712,3]
[402399313,1768672248116,-716.4,0.00016712,3]
[402399316,1768672248126,-500.0,0.00016712,3]
[402399318,1768672248136,-500.0,0.00016712,3]
[402399319,1768672248146,-500.0,0.00016712,3]
[402399321,1768672248155,-729.97,0.00016712,3]
[402399323,1768672248164,-520.99,0.00016712,3]
[402399325,1768672248174,-1532.82,0.00016712,3]
[402399327,1768672248184,-500.0,0.00016712,3]
[402399329,1768672248194,-500.0,0.00016712,3]
[402399331,1768672248204,-500.0,0.00016712,3]
[402399334,1768672248214,-500.0,0.00016712,3]
[402399336,1768672248224,-711.45,0.00016712,3]
[402399338,1768672248234,-762.94,0.00016712,3]
[402399340,1768672248244,-885.65,0.00016712,3]
[402399342,1768672248253,-1015.5,0.00016712,3]
[402399344,1768672248263,-500.0,0.00016712,3]
[402399346,1768672248274,-500.0,0.00016712,3]
[402399348,1768672248290,-500.0,0.00016712,3]
[402399350,1768672248299,-904.58,0.00016712,3]
[402399352,1768672248309,-1533.96,0.00016712,3]
[402399354,1768672248319,-776.21,0.00016712,3]
[402399356,1768672248329,-500.0,0.00016712,3]
[402399357,1768672248337,-500.0,0.00016712,3]
[402399359,1768672248348,-845.11,0.00016712,3]
[402399361,1768672248357,-500.0,0.00016712,3]
[402399363,1768672248367,-881.13,0.00016712,3]
[402399365,1768672248376,-500.0,0.00016712,3]
[402399367,1768672248385,-500.0,0.00016712,3]
[402399369,1768672248395,-500.0,0.00016712,3]
[402399372,1768672248405,-500.0,0.00016712,3]
[402399374,1768672248414,-528.91250035,0.00016712,3]
[402399376,1768672248424,-500.0,0.00016712,3]
[402399378,1768672248433,-500.0,0.00016712,3]
[402399380,1768672248443,-530.24218336,0.00016712,3]
[402399382,1768672248452,-500.0,0.00016712,3]
[402399384,1768672248462,-810.57,0.00016712,3]
[402399386,1768672248471,-1412.17,0.00016712,3]
[402399388,1768672248481,-802.89,0.00016712,3]
[402399390,1768672248491,-500.0,0.00016712,3]
[402399392,1768672248500,-500.0,0.00016712,3]
[402399394,1768672248509,-500.0,0.00016712,3]
[402399396,1768672248519,-500.0,0.00016712,3]
[402399398,1768672248529,-500.0,0.00016712,3]
[402399400,1768672248539,-686.71,0.00016712,3]
[402399402,1768672248548,-727.6,0.00016712,3]
[402399404,1768672248559,-500.0,0.00016712,3]
[402399406,1768672248569,-500.0,0.00016712,3]
[402399408,1768672248578,-500.0,0.00016712,3]
[402399410,1768672248588,-540.93,0.00016712,3]
[402399412,1768672248598,-500.0,0.00016712,3]
[402399414,1768672248607,-500.0,0.00016712,3]
[402399416,1768672248619,-1000.0,0.00016712,2]
[402399418,1768672248631,-500.0,0.00016712,3]
[402399420,1768672248641,-500.0,0.00016712,3]
[402399422,1768672248652,-500.0,0.00016712,3]
[402399424,1768672248661,-500.0,0.00016712,3]
[402399426,1768672248671,-716.95,0.00016712,3]
[402399428,1768672248681,-500.0,0.00016712,3]
[402399430,1768672248690,-500.0,0.00016712,3]
[402399432,1768672248700,-727.17,0.00016712,3]
[402399434,1768672248709,-1357.3,0.00016712,3]
[402399436,1768672248719,-500.0,0.00016712,3]
[402399438,1768672248728,-500.0,0.00016712,3]
[402399440,1768672248737,-500.0,0.00016712,3]
[402399443,1768672248747,-500.0,0.00016712,3]
[402399445,1768672248757,-500.0,0.00016712,3]
[402399447,1768672248767,-1149.14,0.00016712,3]
[402399449,1768672248776,-500.0,0.00016712,3]
[402399451,1768672248785,-607.11,0.00016712,3]
[402399453,1768672248794,-500.0,0.00016712,3]
[402399455,1768672248803,-500.0,0.00016712,3]
[402399457,1768672248813,-808.06,0.00016712,3]
[402399459,1768672248822,-772.15,0.00016712,3]
[402399461,1768672248831,-819.52,0.00016712,3]
[402399463,1768672248842,-500.0,0.00016712,3]
[402399465,1768672248851,-500.0,0.00016712,3]
[402399467,1768672248862,-500.0,0.00016712,3]
[402399469,1768672248872,-500.0,0.00016712,3]
[402399471,1768672248881,-500.0,0.00016712,3]
[402399473,1768672248890,-1028.09,0.00016712,3]
[402399474,1768672248900,-500.0,0.00016712,3]
[402399477,1768672248910,-500.0,0.00016712,3]
[402399479,1768672248919,-837.9,0.00016712,3]
[402399481,1768672248930,-500.0,0.00016712,3]
[402399483,1768672248939,-1136.48,0.00016712,3]
[402399485,1768672248949,-500.0,0.00016712,3]
[402399487,1768672248958,-500.0,0.00016712,3]
[402399489,1768672248969,-500.0,0.00016712,3]
[402399491,1768672248978,-599.08,0.00016712,3]
[402399493,1768672248988,-1593.44,0.00016712,3]
[402399495,1768672248999,-500.0,0.00016712,3]
[402399497,1768672249009,-500.0,0.00016712,3]
[402399499,1768672249019,-500.0,0.00016712,3]
[402399501,1768672249028,-231.71584647,0.00016712,3]
[402399503,1768672249037,-500.0,0.00016712,3]
[402399505,1768672249047,-227.93902115,0.00016712,3]
[402399507,1768672249057,-500.0,0.00016712,3]
[402399509,1768672249067,-500.0,0.00016712,3]
[402399511,1768672249077,-500.0,0.00016712,3]
[402399513,1768672249086,-500.0,0.00016712,3]
[402399515,1768672249096,-1254.11,0.00016712,3]
[402399517,1768672249105,-500.0,0.00016712,3]
[402399519,1768672249115,-500.0,0.00016712,3]
[402399521,1768672249124,-500.0,0.00016712,3]
[402399524,1768672249134,-500.0,0.00016712,3]
[402399526,1768672249148,-500.0,0.00016712,3]
[402399528,1768672249158,-1755.19,0.00016712,3]
[402399530,1768672249168,-631.38,0.00016712,3]
[402399532,1768672249178,-514.21,0.00016712,3]
[402399534,1768672249187,-1107.65,0.00016712,3]
[402399536,1768672249197,-500.0,0.00016712,3]
[402399539,1768672249207,-500.0,0.00016712,3]
[402399541,1768672249216,-500.0,0.00016712,3]
[402399543,1768672249226,-1185.83,0.00016712,3]
[402399545,1768672249237,-1000.17,0.00016712,3]
[402399547,1768672249247,-500.0,0.00016712,3]
[402399549,1768672249257,-500.0,0.00016712,3]
[402399551,1768672249267,-500.0,0.00016712,3]
[402399553,1768672249282,-500.0,0.00016712,3]
[402399555,1768672249291,-1353.46,0.00016712,3]
[402399557,1768672249300,-500.0,0.00016712,3]
[402399559,1768672249310,-500.0,0.00016712,3]
[402399561,1768672249321,-500.0,0.00016712,3]
[402399563,1768672249330,-500.0,0.00016712,3]
[402399565,1768672249339,-500.0,0.00016712,3]
[402399567,1768672249348,-500.0,0.00016712,3]
[402399569,1768672249358,-500.0,0.00016712,3]
[402399571,1768672249367,-526.8,0.00016712,3]
[402399573,1768672249376,-1772.05,0.00016712,3]
[402399575,1768672249385,-638.11,0.00016712,3]
[402399577,1768672249394,-500.0,0.00016712,3]
[402399579,1768672249404,-1230.93,0.00016712,3]
[402399581,1768672249414,-500.0,0.00016712,3]
[402399583,1768672249423,-526.01,0.00016712,3]
[402399585,1768672249434,-579.07,0.00016712,3]
[402399587,1768672249443,-500.0,0.00016712,3]
[402399589,1768672249453,-1439.94,0.00016712,3]
[402399591,1768672249462,-1401.58,0.00016712,3]
[402399593,1768672249473,-500.0,0.00016712,3]
[402399595,1768672249482,-364.90375644,0.00016712,3]
[402399598,1768672249492,-500.0,0.00016712,3]
[402399600,1768672249501,-500.0,0.00016712,3]
[402399601,1768672249510,-500.0,0.00016712,3]
[402399602,1768672249519,-500.0,0.00016712,3]
[402399603,1768672249529,-500.0,0.00016712,3]
[402399604,1768672249538,-1620.39,0.00016712,3]
[402399605,1768672249548,-500.0,0.00016712,3]
[402399606,1768672249556,-500.0,0.00016712,3]
[402399607,1768672249565,-530.80700199,0.00016712,3]
[402399608,1768672249574,-500.0,0.00016712,3]
[402399609,1768672249582,-500.0,0.00016712,3]
[402399610,1768672249591,-500.0,0.00016712,3]
[402399611,1768672249599,-500.0,0.00016712,3]
[402399612,1768672249609,-500.0,0.00016712,3]
[402399613,1768672249618,-359.73801273,0.00016712,3]
[402399614,1768672249628,-655.94,0.00016712,3]
[402399615,1768672249637,-755.72,0.00016712,3]
[402399616,1768672249647,-500.0,0.00016712,3]
[402399617,1768672249656,-500.0,0.00016712,3]
[402399618,1768672249665,-500.0,0.00016712,3]
[402399619,1768672249675,-6173.67,0.00016712,3]
[402399620,1768672249685,-500.0,0.00016712,3]
[402399621,1768672249695,-677.04,0.00016712,3]
[402399622,1768672249705,-500.0,0.00016712,3]
[402399623,1768672249714,-500.0,0.00016712,3]
[402399624,1768672249723,-500.0,0.00016712,3]
[402399626,1768672249732,-568.07228824,0.00016712,3]
[402399628,1768672249741,-1349.74,0.00016712,3]
[402399630,1768672249750,-500.0,0.00016712,3]
[402399632,1768672249759,-500.0,0.00016712,3]
[402399634,1768672249769,-785.23,0.00016712,3]
[402399636,1768672249779,-715.28,0.00016712,3]
[402399638,1768672249788,-500.0,0.00016712,3]
[402399640,1768672249798,-500.0,0.00016712,3]
[402399642,1768672249807,-500.0,0.00016712,3]
[402399644,1768672249817,-1079.91,0.00016712,3]
[402399646,1768672249827,-1224.26,0.00016712,3]
[402399655,1768672249899,-1116.8,0.00016712,3]
[402399657,1768672249909,-788.6,0.00016712,3]
[402399659,1768672249919,-618.2,0.00016712,3]
[402399661,1768672249928,-500.0,0.00016712,3]
[402399663,1768672249937,-500.0,0.00016712,3]
[402399665,1768672249946,-500.0,0.00016712,3]
[402399667,1768672249955,-963.95,0.00016712,3]
[402399669,1768672249965,-271.88452189,0.00016712,3]
[402399671,1768672249974,-500.0,0.00016712,3]
[402399673,1768672249983,-500.0,0.00016712,3]
[402399675,1768672249993,-500.0,0.00016712,3]
[402399677,1768672250004,-557.77,0.00016712,3]
[402399679,1768672250014,-587.98,0.00016712,3]
[402399681,1768672250024,-500.0,0.00016712,3]
[402399683,1768672250033,-1205.99,0.00016712,3]
[402399684,1768672250043,-554.51009114,0.00016712,3]
[402399686,1768672250052,-2066.65,0.00016712,3]
[402399688,1768672250061,-500.0,0.00016712,3]
[402399690,1768672250070,-500.0,0.00016712,3]
[402399692,1768672250079,-500.0,0.00016712,3]
[402399694,1768672250088,-733.5,0.00016712,3]
[402399696,1768672250097,-650.21,0.00016712,3]
[402399698,1768672250107,-613.38,0.00016712,3]
[402399700,1768672250116,-500.0,0.00016712,3]
[402399702,1768672250126,-835.5,0.00016712,3]
[402399704,1768672250135,-500.0,0.00016712,3]
[402399706,1768672250144,-579.4,0.00016712,3]
[402399708,1768672250153,-573.28,0.00016712,3]
[402399711,1768672250163,-500.0,0.00016712,3]
[402399713,1768672250172,-500.0,0.00016712,3]
[402399714,1768672250182,-743.96,0.00016712,3]
[402399716,1768672250192,-1136.31,0.00016712,3]
[402399718,1768672250201,-500.0,0.00016712,3]
[402399720,1768672250210,-628.63,0.00016712,3]
[402399722,1768672250220,-1068.17,0.00016712,3]
[402399724,1768672250230,-936.87,0.00016712,3]
[402399726,1768672250240,-500.0,0.00016712,3]
[402399728,1768672250249,-500.0,0.00016712,3]
[402399730,1768672250258,-500.0,0.00016712,3]
[402399732,1768672250267,-500.0,0.00016712,3]
[402399734,1768672250280,-500.0,0.00016712,3]
[402399736,1768672250290,-549.98,0.00016712,3]
[402399738,1768672250299,-500.0,0.00016712,3]
[402399740,1768672250309,-834.61,0.00016712,3]
[402399742,1768672250319,-634.82538104,0.00016712,3]
[402399744,1768672250329,-284.7821744,0.00016712,3]
[402399746,1768672250339,-336.17,0.00016712,3]
[402399748,1768672250348,-564.82,0.00016712,3]
[402399750,1768672250357,-500.0,0.00016712,3]
[402399752,1768672250366,-554.04,0.00016712,3]
[402399754,1768672250375,-500.0,0.00016712,3]
[402399756,1768672250384,-500.0,0.00016712,3]
[402399758,1768672250392,-500.0,0.00016712,3]
[402399760,1768672250402,-11730.58,0.00016712,3]
[402399762,1768672250411,-500.0,0.00016712,3]
[402399764,1768672250420,-500.0,0.00016712,3]
[402399766,1768672250430,-500.0,0.00016712,3]
[402399768,1768672250439,-500.0,0.00016712,3]
[402399770,1768672250449,-545.24616728,0.00016712,3]
[402399772,1768672250458,-500.0,0.00016712,3]
[402399774,1768672250467,-500.0,0.00016712,3]
[402399776,1768672250477,-500.0,0.00016712,3]
[402399778,1768672250488,-553.24,0.00016712,3]
[402399780,1768672250497,-661.23,0.00016712,3]
[402399782,1768672250506,-1280.11,0.00016712,3]
[402399784,1768672250515,-500.0,0.00016712,3]
[402399786,1768672250524,-260.63382945,0.00016712,3]
[402399788,1768672250534,-635.13,0.00016712,3]
[402399790,1768672250543,-500.0,0.00016712,3]
[402399792,1768672250553,-500.0,0.00016712,3]
[402399794,1768672250562,-500.0,0.00016712,3]
[402399796,1768672250571,-1044.17,0.00016712,3]
[402399798,1768672250580,-909.68,0.00016712,3]
[402399800,1768672250590,-500.0,0.00016712,3]
[402399802,1768672250599,-500.0,0.00016712,3]
[402399805,1768672250609,-500.0,0.00016712,3]
[402399806,1768672250618,-730.73,0.00016712,3]
[402399809,1768672250628,-500.0,0.00016712,3]
[402399811,1768672250637,-500.0,0.00016712,3]
[402399813,1768672250646,-790.59,0.00016712,3]
[402399814,1768672250656,-500.0,0.00016712,3]
[402399816,1768672250666,-500.0,0.00016712,3]
[402399819,1768672250676,-364.13507716,0.00016712,3]
[402399820,1768672250685,-500.0,0.00016712,3]
[402399822,1768672250694,-2112.69,0.00016712,3]
[402399824,1768672250704,-511.42,0.00016712,3]
[402399826,1768672250714,-500.0,0.00016712,3]
[402399829,1768672250723,-535.75,0.00016712,3]
[402399831,1768672250732,-500.0,0.00016712,3]
[402399833,1768672250742,-1257.86,0.00016712,3]
[402399835,1768672250751,-500.0,0.00016712,3]
[402399837,1768672250760,-500.0,0.00016712,3]
[402399838,1768672250770,-564.16,0.00016712,3]
[402399841,1768672250784,-500.0,0.00016712,3]
[402399843,1768672250793,-500.0,0.00016712,3]
[402399845,1768672250802,-500.0,0.00016712,3]
[402399847,1768672250812,-500.0,0.00016712,3]
[402399849,1768672250822,-1060.23,0.00016712,3]
[402399851,1768672250831,-793.71,0.00016712,3]
[402399853,1768672250840,-500.0,0.00016712,3]
[402399855,1768672250849,-753.83,0.00016712,3]
[402399857,1768672250858,-500.0,0.00016712,3]
[402399859,1768672250867,-1178.18,0.00016712,3]
[402399861,1768672250876,-500.0,0.00016712,3]
[402399863,1768672250886,-819.72,0.00016712,3]
[402399865,1768672250900,-500.0,0.00016712,3]
[402399867,1768672250910,-500.0,0.00016712,3]
[402399869,1768672250919,-500.0,0.00016712,3]
[402399871,1768672250928,-500.0,0.00016712,3]
[402399873,1768672250947,-500.0,0.00016712,3]
[402399875,1768672250965,-641.91,0.00016712,3]
[402399877,1768672250975,-500.0,0.00016712,3]
[402399879,1768672250984,-500.0,0.00016712,3]
[402399881,1768672250994,-500.0,0.00016712,3]
[402399883,1768672251003,-990.33,0.00016712,3]
[402399885,1768672251011,-500.0,0.00016712,3]
[402399887,1768672251020,-500.0,0.00016712,3]
[402399889,1768672251030,-500.0,0.00016712,3]
[402399891,1768672251038,-500.0,0.00016712,3]
[402399893,1768672251048,-500.0,0.00016712,3]
[402399895,1768672251057,-500.0,0.00016712,3]
[402399897,1768672251066,-500.0,0.00016712,3]
[402399899,1768672251075,-549.36,0.00016712,3]
[402399901,1768672251084,-500.0,0.00016712,3]
[402399903,1768672251093,-1220.19,0.00016712,3]
[402399905,1768672251103,-1328.95,0.00016712,3]
[402399907,1768672251112,-500.0,0.00016712,3]
[402399909,1768672251121,-525.66,0.00016712,3]
[402399911,1768672251132,-500.0,0.00016712,3]